fUST/lending_fUST_20240105
["ID","MTS","AMOUNT","RATE_DAILY","PERIOD"]
[310303282,1704468636647,-3734.31028472,0.00020222,2]
[310303283,1704468636657,-10484.0225358,0.00020222,2]
[310303284,1704468636667,-4805.95187492,0.00020222,2]
[310303285,1704468636678,-975.04064545,0.00020222,2]
[310303286,1704468636688,-2098.19039752,0.00020222,2]
[310303287,1704468636697,-309.58206499,0.00020223,2]
[310303288,1704468636707,-2699.94240879,0.00020224,5]
[310303289,1704468636717,-293.96606539,0.00020232,2]
[310303290,1704468636726,-1573.51769649,0.00020232,2]
[310303291,1704468636736,-8258.0500539,0.00020237,2]
[310303292,1704468636746,-750.589436,0.00020904,2]
[310303293,1704468636756,-750.589436,0.00020904,2]
[310303294,1704468636765,-750.589436,0.00020904,2]
[310303295,1704468636774,-750.589436,0.00020904,2]
[310303296,1704468636785,-750.589436,0.00020904,2]
[310303297,1704468636795,-178.27764,0.00020911,2]
[310303298,1704468636805,-820.50335488,0.00020912,2]
[310303299,1704468636815,-169.558296,0.00021918,2]
[310303300,1704468636825,-156.68506121,0.00022,2]
[310303301,1704468636834,-3913.18170102,0.00022,2]
[310303302,1704468636844,-367.04252259,0.00022215,2]
[310303303,1704468636853,-309.56660676,0.00022215,2]
[310303304,1704468636863,-360.177092,0.0002227,2]
[310303305,1704468636873,-169.558296,0.00022559,2]
[310303306,1704468636883,-9907.49920413,0.00023,2]
[310303307,1704468636893,-169.558296,0.000232,2]
[310303308,1704468636903,-315.12428646,0.00023288,2]
[310303309,1704468636913,-160.80884562,0.00023288,2]
[310303310,1704468636923,-500.0,0.00023288,2]
[310303311,1704468636933,-500.0,0.00023288,2]
[310303312,1704468636944,-500.0,0.00023288,2]
[310303313,1704468636953,-220.87016535,0.00023288,2]
[310303314,1704468636963,-500.0,0.00023288,2]
[310303315,1704468636973,-298.82967204,0.00023288,2]
[310303316,1704468636982,-500.0,0.00023288,2]
[310303317,1704468636991,-500.0,0.00023288,2]
[310303318,1704468637001,-169.558296,0.00023841,2]
[310303319,1704468637011,-2290.78711529,0.00024,2]
[310303320,1704468637021,-169.558296,0.00024482,2]
[310303321,1704468637031,-280.0,0.00024658,2]
[310303322,1704468637041,-2067.23046819,0.00024748,2]
[310303323,1704468637051,-858.99104883,0.0002475,2]
[310303324,1704468637061,-486.01123207,0.000249,2]
[310303325,1704468637069,-612.96786415,0.00025,2]
[310303326,1704468637079,-2482.39965936,0.00025,2]
[310303327,1704468637090,-4705.82021629,0.00025,2]
[310303328,1704468637100,-159.51633835,0.00025,2]
[310303329,1704468637110,-593.03564829,0.00025742,2]
[310303330,1704468637119,-466.12469227,0.00025752,2]
[310303331,1704468637129,-151.0,0.00025752,2]
[310303332,1704468637139,-242.17543569,0.00025753,2]
[310303333,1704468637149,-1576.20853557,0.00025753,2]
[310303334,1704468637158,-154.97706399,0.00025753,2]
[310303335,1704468637168,-151.0,0.00025754,2]
[310303336,1704468637178,-527.65670072,0.00026,2]
[310303337,1704468637188,-191.7680962,0.00026774,2]
[310303338,1704468637199,-486.01123203,0.00027554,2]
[310303339,1704468637209,-168.56942713,0.00027652,2]
[310303340,1704468637218,-155.99269198,0.00027758,2]
[310303341,1704468637227,-151.0,0.00027861,2]
[310303342,1704468637237,-676.09716813,0.00028168,2]
[310303343,1704468637246,-1079.14471557,0.00028509,2]
[310303344,1704468637255,-1125.12328,0.0002883,2]
[310303345,1704468637265,-513.18652972,0.000289,2]
[310303346,1704468637275,-162.9898,0.00029675,2]
[310303347,1704468637284,-1321.39393737,0.000297,2]
[310303348,1704468637294,-309.59752322,0.00029931,2]
[310303349,1704468637303,-154.98818721,0.00029932,2]
[310303350,1704468637313,-154.98434752,0.00029932,2]
[310303351,1704468637323,-4844.02983441,0.00029933,2]
[310303352,1704468637332,-264.74772312,0.00029933,2]
[310303353,1704468637342,-642.95723578,0.00029935,2]
[310303354,1704468637352,-174.759987,0.00029995,2]
[310303355,1704468637362,-235.68021843,0.00029999,2]
[310303356,1704468637372,-6538.37354299,0.0003,4]
[310303357,1704468637382,-685.71824329,0.0003,4]
[310303358,1704468637391,-7029.07521928,0.0003,4]
[310303359,1704468637400,-243.43593693,0.0003,4]
[310303360,1704468637410,-155.0,0.0003,2]
[310303361,1704468637420,-151.0,0.0003,2]
[310303362,1704468637430,-243.0,0.0003,2]
[310303363,1704468637439,-951.78878742,0.0003,4]
[310303364,1704468637448,-486.01123203,0.00030208,2]
[310303365,1704468637458,-830.48098607,0.00030364,10]
[310303367,1704468637468,-43024.76859684,0.00031,4]
[310303369,1704468637478,-151.0,0.00031,2]
[310303371,1704468637487,-154.84515485,0.00031002,2]
[310303373,1704468637497,-494.21254538,0.00031303,2]
[310303374,1704468637507,-155.45432853,0.00031303,4]
[310303375,1704468637517,-202.69015422,0.00031312,4]
[310303376,1704468637526,-878.54587539,0.00031314,2]
[310303377,1704468637536,-2989.41994045,0.00031314,4]
[310303378,1704468637546,-584.35312554,0.00031314,4]
[310303379,1704468637556,-500.0,0.00031314,4]
[310303380,1704468637566,-640.33383901,0.00031314,4]
[310303381,1704468637576,-193.37474437,0.00031314,4]
[310303382,1704468637585,-500.0,0.00031314,4]
[310303383,1704468637596,-621.62980796,0.00031314,4]
[310303384,1704468637605,-500.0,0.00031314,4]
[310303386,1704468637615,-500.0,0.00031314,4]
[310303388,1704468637624,-457.80007872,0.00031314,4]
[310303389,1704468637636,-500.0,0.00031314,4]
[310303390,1704468637646,-499.99999999,0.00031314,4]
[310303391,1704468637656,-409.30014194,0.00031315,2]
[310303392,1704468637666,-194.53920289,0.00031315,4]
[310303393,1704468637676,-602.02483042,0.00031315,4]
[310303394,1704468637687,-4551.2142411,0.00031315,4]
[310303395,1704468637697,-2445.08878127,0.00031315,2]
[310303396,1704468637706,-155.73535849,0.00031315,4]
[310303397,1704468637716,-16427.57718106,0.00031315,14]
[310303398,1704468637725,-309.56660676,0.00031315,2]
[310303399,1704468637735,-151.0,0.00031315,2]
[310303400,1704468637745,-151.0,0.00031315,2]
[310303401,1704468637755,-197.09,0.00031315,2]
[310303402,1704468637764,-275.374156,0.00031315,2]
[310303403,1704468637773,-2610.0394774,0.00031322,4]
[310303404,1704468637783,-208.5232423,0.00031323,4]
[310303405,1704468637792,-499.80429709,0.00031329,5]
[310303406,1704468637802,-155.0,0.0003137,2]
[310303407,1704468637812,-2011.40113899,0.00032,2]
[310303408,1704468637821,-307.04940251,0.00032561,2]
[310303409,1704468637831,-155.0,0.0003274,2]
[310303410,1704468637840,-486.01123203,0.00032862,2]
[310303411,1704468637848,-611.34321484,0.00032876,7]
[310303421,1704468637967,-500.0,0.00032876,7]
[310303423,1704468637977,-224.12225403,0.00032876,7]
[310303425,1704468637987,-432.52209921,0.00032876,7]
[310303427,1704468637996,-500.0,0.00032876,7]
[310303429,1704468638006,-500.0,0.00032876,7]
[310303430,1704468638015,-376.45344701,0.00032974,4]
[310303431,1704468638025,-536.29146175,0.00032974,4]
[310303432,1704468638034,-155.22148757,0.00032996,4]
[310303433,1704468638043,-1474.21988053,0.00033,2]
[310303435,1704468638053,-245.30041598,0.00033,4]
[310303437,1704468638063,-243.0,0.00033,2]
[310303439,1704468638071,-513.18652972,0.000339,2]
[310303441,1704468638081,-155.07393354,0.00033999,2]
[310303443,1704468638090,-199.11669018,0.00034,3]
[310303445,1704468638099,-20800.66275616,0.00034,2]
[310303447,1704468638108,-1000.0,0.00034,7]
[310303449,1704468638118,-155.0,0.0003411,2]
[310303451,1704468638127,-2000.0,0.000345,2]
[310303453,1704468638136,-367.75064537,0.000345,7]
[310303455,1704468638145,-2944.133618,0.00034521,2]
[310303457,1704468638155,-590.61742421,0.00035,2]
[310303459,1704468638165,-3538.87543689,0.00035,2]
[310303461,1704468638174,-474.80514366,0.00035,4]
[310303463,1704468638183,-2650.27448344,0.00035,4]
[310303464,1704468638192,-355.91910944,0.00035,14]
[310303465,1704468638202,-4280.0215874,0.00035,4]
[310303467,1704468638211,-4593.31950434,0.000354,2]
[310303469,1704468638221,-1000.0,0.00035432,10]
[310303471,1704468638230,-7102.11150205,0.00035432,2]
[310303473,1704468638239,-1491.44341542,0.00035432,2]
[310303475,1704468638248,-163.60685914,0.00035432,2]
[310303477,1704468638258,-217.60757221,0.00035432,2]
[310303479,1704468638267,-376.40666436,0.00035432,2]
[310303481,1704468638276,-494.0,0.00035452,2]
[310303483,1704468638285,-155.0,0.0003548,2]
[310303485,1704468638294,-39504.71965107,0.000355,14]
[310303486,1704468638304,-486.01123203,0.00035516,2]
[310303488,1704468638313,-500.0,0.00035616,7]
[310303490,1704468638323,-500.0,0.00035616,7]
[310303491,1704468638332,-500.0,0.00035616,7]
[310303492,1704468638343,-500.0,0.00035616,7]
[310303494,1704468638353,-500.0,0.00035616,7]
[310303496,1704468638363,-500.0,0.00035616,7]
[310303498,1704468638372,-500.0,0.00035616,7]
[310303499,1704468638381,-513.52240526,0.00035616,14]
[310303500,1704468638390,-500.0,0.00035616,7]
[310303501,1704468638399,-500.0,0.00035616,7]
[310303502,1704468638409,-500.0,0.00035616,7]
[310303503,1704468638418,-500.0,0.00035616,7]
[310303504,1704468638428,-500.0,0.00035616,7]
[310303505,1704468638437,-500.0,0.00035616,7]
[310303506,1704468638446,-500.0,0.00035616,7]
[310303508,1704468638455,-500.0,0.00035616,7]
[310303511,1704468638465,-500.0,0.00035616,7]
[310303513,1704468638486,-500.0,0.00035616,7]
[310303516,1704468638496,-333.84944928,0.00035616,7]
[310303518,1704468638506,-500.0,0.00035616,7]
[310303520,1704468638516,-500.0,0.00035616,7]
[310303522,1704468638526,-500.0,0.00035616,7]
[310303524,1704468638537,-500.0,0.00035616,7]
[310303526,1704468638547,-500.0,0.00035616,7]
[310303528,1704468638557,-1224.74,0.00035616,7]
[310303529,1704468638566,-500.0,0.00035616,7]
[310303530,1704468638576,-2052.91,0.00035616,7]
[310303532,1704468638586,-624.07,0.00035616,7]
[310303534,1704468638595,-500.0,0.00035616,7]
[310303536,1704468638605,-500.0,0.00035616,7]
[310303539,1704468638615,-674.23,0.00035616,7]
[310303541,1704468638624,-500.0,0.00035616,7]
[310303543,1704468638634,-853.72,0.00035616,7]
[310303545,1704468638644,-500.0,0.00035616,7]
[310303547,1704468638653,-500.0,0.00035616,7]
[310303549,1704468638663,-500.0,0.00035616,7]
[310303550,1704468638672,-2205.94,0.00035616,7]
[310303552,1704468638682,-500.0,0.00035616,7]
[310303554,1704468638692,-500.0,0.00035616,7]
[310303556,1704468638701,-28300.74,0.00035616,3]
[310303557,1704468638711,-5704.49,0.00035616,7]
[310303558,1704468638721,-1041.92,0.00035616,7]
[310303559,1704468638730,-500.0,0.00035616,7]
[310303560,1704468638740,-500.0,0.00035616,7]
[310303561,1704468638750,-500.0,0.00035616,7]
[310303562,1704468638760,-500.0,0.00035616,7]
[310303563,1704468638770,-500.0,0.00035616,7]
[310303564,1704468638780,-500.0,0.00035616,7]
[310303565,1704468638790,-853.97,0.00035616,7]
[310303566,1704468638799,-866.43,0.00035616,7]
[310303567,1704468638809,-3712.17,0.00035616,7]
[310303568,1704468638818,-594.91872802,0.00035616,7]
[310303569,1704468638828,-500.0,0.00035616,7]
[310303570,1704468638837,-500.0,0.00035616,7]
[310303571,1704468638847,-194.36500845,0.00035616,7]
[310303572,1704468638856,-500.0,0.00035616,7]
[310303573,1704468638866,-533.48335192,0.00035616,7]
[310303574,1704468638875,-500.0,0.00035616,7]
[310303575,1704468638885,-500.0,0.00035616,7]
[310303576,1704468638894,-184.373406,0.00035616,120]
[310303577,1704468638904,-2944.133618,0.00035798,2]
[310303578,1704468638915,-12206.9372436,0.000358,5]
[310303579,1704468638925,-372.97788477,0.00035889,7]
[310303580,1704468638935,-500.0,0.00035889,7]
[310303581,1704468638948,-350.61187532,0.00035889,7]
[310303582,1704468638957,-384.20030341,0.00035889,7]
[310303583,1704468638967,-218.35005904,0.00035889,7]
[310303584,1704468638977,-500.0,0.00035889,7]
[310303585,1704468638986,-500.0,0.00035889,7]
[310303586,1704468638996,-500.0,0.00035889,7]
[310303587,1704468639005,-500.0,0.0003589,7]
[310303588,1704468639014,-500.0,0.0003589,7]
[310303589,1704468639024,-322.38104457,0.0003589,7]
[310303590,1704468639034,-500.0,0.0003589,7]
[310303591,1704468639044,-500.0,0.0003589,7]
[310303592,1704468639053,-500.0,0.0003589,7]
[310303593,1704468639063,-500.0,0.0003589,7]
[310303594,1704468639072,-500.0,0.0003589,7]
[310303595,1704468639082,-500.0,0.0003589,7]
[310303596,1704468639091,-500.0,0.0003589,7]
[310303597,1704468639102,-500.0,0.0003589,7]
[310303598,1704468639111,-500.0,0.0003589,7]
[310303599,1704468639120,-500.0,0.0003589,7]
[310303600,1704468639130,-500.0,0.0003589,7]
[310303601,1704468639139,-500.0,0.0003589,7]
[310303602,1704468639149,-500.0,0.0003589,7]
[310303603,1704468639159,-500.0,0.0003589,7]
[310303604,1704468639168,-500.0,0.0003589,7]
[310303605,1704468639178,-500.0,0.0003589,7]
[310303606,1704468639189,-500.0,0.0003589,7]
[310303607,1704468639206,-1224.74,0.0003589,7]
[310303608,1704468639225,-500.0,0.0003589,7]
[310303609,1704468639234,-2052.91,0.0003589,7]
[310303610,1704468639243,-624.07,0.0003589,7]
[310303611,1704468639253,-500.0,0.0003589,7]
[310303612,1704468639262,-500.0,0.0003589,7]
[310303613,1704468639272,-674.23,0.0003589,7]
[310303614,1704468639281,-399.62154004,0.0003589,7]
[310303615,1704468639290,-853.72,0.0003589,7]
[310303616,1704468639299,-500.0,0.0003589,7]
[310303617,1704468639308,-500.0,0.0003589,7]
[310303618,1704468639318,-500.0,0.0003589,7]
[310303619,1704468639328,-2205.94,0.0003589,7]
[310303620,1704468639337,-500.0,0.0003589,7]
[310303621,1704468639347,-500.0,0.0003589,7]
[310303622,1704468639356,-28300.74,0.0003589,3]
[310303623,1704468639366,-5704.49,0.0003589,7]
[310303624,1704468639375,-1041.92,0.0003589,7]
[310303625,1704468639385,-500.0,0.0003589,7]
[310303626,1704468639395,-500.0,0.0003589,7]
[310303627,1704468639405,-224.09206611,0.0003589,7]
[310303628,1704468639416,-500.0,0.0003589,7]
[310303629,1704468639426,-500.0,0.0003589,7]
[310303630,1704468639436,-500.0,0.0003589,7]
[310303631,1704468639446,-853.97,0.0003589,7]
[310303632,1704468639455,-866.43,0.0003589,7]
[310303633,1704468639465,-3712.17,0.0003589,7]
[310303634,1704468639475,-500.0,0.0003589,7]
[310303635,1704468639485,-500.0,0.0003589,7]
[310303636,1704468639495,-500.0,0.0003589,7]
[310303637,1704468639504,-500.0,0.0003589,7]
[310303638,1704468639515,-500.0,0.0003589,7]
[310303639,1704468639524,-1000.0,0.000359,7]
[310303640,1704468639535,-1000.0,0.000359,7]
[310303641,1704468639544,-154.82968734,0.000359,4]
[310303642,1704468639554,-500.0,0.00035996,7]
[310303643,1704468639563,-500.0,0.00035996,7]
[310303644,1704468639573,-500.0,0.00035996,7]
[310303645,1704468639582,-500.0,0.00035996,7]
[310303646,1704468639592,-500.0,0.00035996,2]
[310303647,1704468639602,-500.0,0.00035996,30]
[310303648,1704468639612,-500.0,0.00035996,7]
[310303649,1704468639622,-500.0,0.00035996,7]
[310303650,1704468639632,-500.0,0.00035996,7]
[310303651,1704468639645,-503.15177858,0.00035996,7]
[310303652,1704468639654,-500.0,0.00035996,7]
[310303653,1704468639663,-500.0,0.00035996,7]
[310303654,1704468639672,-266.90079581,0.00035997,4]
[310303655,1704468639684,-344.4305603,0.00035997,7]
[310303656,1704468639692,-500.0,0.00035997,7]
[310303657,1704468639702,-500.0,0.00035997,7]
[310303658,1704468639713,-500.0,0.00035997,7]
[310303659,1704468639722,-500.0,0.00035997,7]
[310303660,1704468639732,-500.0,0.00035997,7]
[310303661,1704468639742,-341.40629095,0.00035997,7]
[310303662,1704468639826,-158.59370905,0.00035997,7]
[310303663,1704468639836,-405.14456047,0.00035997,7]
[310303664,1704468639848,-94.85543953,0.00035997,7]
[310303665,1704468639857,-500.0,0.00035997,7]
[310303666,1704468639866,-500.0,0.00035997,7]
[310303667,1704468639876,-500.0,0.00035997,7]
[310303668,1704468639885,-500.0,0.00035997,7]
[310303669,1704468639895,-154.87609912,0.00035998,2]
[310303670,1704468639905,-154.87609912,0.00035998,4]
[310303672,1704468639915,-409.50813087,0.00035998,4]
[310303673,1704468639926,-1351.60839685,0.00035999,5]
[310303674,1704468639936,-155.18544951,0.00035999,30]
[310303675,1704468639947,-52658.76100178,0.00036,5]
[310303678,1704468640047,-154.82968734,0.00020207,2]
[310303679,1704468640056,-298.48515016,0.00020207,2]
[310303680,1704468640066,-1585.54000309,0.00020207,2]
[310303681,1704468640075,-369.31689779,0.00020207,2]
[310303682,1704468640085,-8931.55240714,0.00036,5]
[310303683,1704468640096,-243.0,0.00036,2]
[310303684,1704468640106,-762.60121561,0.00036121,2]
[310303685,1704468640115,-3660.04270864,0.00036151,2]
[310303686,1704468640125,-5000.0,0.00036155,7]
[310303687,1704468640135,-9777.92392174,0.00036155,2]
[310303688,1704468640144,-417.81576505,0.00036155,2]
[310303690,1704468640153,-2723.92472434,0.00036155,2]
[310303692,1704468640163,-5000.0,0.00036155,7]
[310303693,1704468640172,-500.0,0.00036164,7]
[310303694,1704468640183,-537.72586878,0.00036164,7]
[310303695,1704468640194,-500.0,0.00036164,7]
[310303696,1704468640203,-500.0,0.00036164,7]
[310303697,1704468640213,-500.0,0.00036164,7]
[310303698,1704468640223,-500.0,0.00036164,7]
[310303699,1704468640233,-500.0,0.00036164,7]
[310303700,1704468640242,-500.0,0.00036164,7]
[310303701,1704468640252,-500.0,0.00036164,7]
[310303702,1704468640261,-500.0,0.00036164,7]
[310303703,1704468640270,-500.0,0.00036164,7]
[310303704,1704468640280,-500.0,0.00036164,7]
[310303705,1704468640289,-500.0,0.00036164,7]
[310303706,1704468640299,-500.0,0.00036164,7]
[310303707,1704468640308,-500.0,0.00036164,7]
[310303708,1704468640318,-500.0,0.00036164,7]
[310303709,1704468640327,-1224.74,0.00036164,7]
[310303710,1704468640336,-500.0,0.00036164,7]
[310303711,1704468640346,-2052.91,0.00036164,7]
[310303712,1704468640355,-500.0,0.00036164,7]
[310303713,1704468640364,-500.0,0.00036164,7]
[310303714,1704468640374,-674.23,0.00036164,7]
[310303715,1704468640383,-853.72,0.00036164,7]
[310303716,1704468640393,-500.0,0.00036164,7]
[310303717,1704468640402,-500.0,0.00036164,7]
[310303718,1704468640412,-500.0,0.00036164,7]
[310303719,1704468640421,-2205.94,0.00036164,7]
[310303720,1704468640432,-500.0,0.00036164,7]
[310303721,1704468640442,-500.0,0.00036164,7]
[310303722,1704468640452,-28300.74,0.00036164,3]
[310303723,1704468640461,-5704.49,0.00036164,7]
[310303724,1704468640469,-1041.92,0.00036164,7]
[310303725,1704468640478,-500.0,0.00036164,7]
[310303726,1704468640488,-500.0,0.00036164,7]
[310303727,1704468640497,-500.0,0.00036164,7]
[310303728,1704468640508,-500.0,0.00036164,7]
[310303729,1704468640517,-500.0,0.00036164,7]
[310303730,1704468640527,-853.97,0.00036164,7]
[310303731,1704468640537,-866.43,0.00036164,7]
[310303732,1704468640547,-3712.17,0.00036164,7]
[310303733,1704468640557,-500.0,0.00036164,7]
[310303734,1704468640566,-500.0,0.00036164,7]
[310303735,1704468640575,-500.0,0.00036164,7]
[310303736,1704468640585,-153.0,0.00036247,2]
[310303737,1704468640594,-153.0,0.00036247,2]
[310303738,1704468640604,-155.1035994,0.00036247,2]
[310303739,1704468640613,-500.0,0.0003627,7]
[310303740,1704468640623,-500.0,0.0003627,7]
[310303741,1704468640633,-500.0,0.0003627,7]
[310303742,1704468640643,-303.33944967,0.0003627,2]
[310303743,1704468640812,-500.0,0.0003627,7]
[310303744,1704468640823,-500.0,0.0003627,7]
[310303745,1704468640833,-500.0,0.0003627,7]
[310303746,1704468640842,-500.0,0.00036271,7]
[310303747,1704468640851,-500.0,0.00036271,7]
[310303748,1704468640861,-500.0,0.00036271,7]
[310303749,1704468640870,-500.0,0.00036271,7]
[310303750,1704468640879,-500.0,0.00036271,7]
[310303751,1704468640889,-500.0,0.00036271,7]
[310303752,1704468640899,-500.0,0.00036271,7]
[310303753,1704468640908,-500.0,0.00036271,7]
[310303754,1704468640918,-500.0,0.00036271,7]
[310303755,1704468640927,-500.0,0.00036271,7]
[310303756,1704468640937,-500.0,0.00036271,7]
[310303757,1704468640948,-500.0,0.00036438,7]
[310303758,1704468640957,-500.0,0.00036438,7]
[310303759,1704468640966,-500.0,0.00036438,7]
[310303760,1704468640976,-500.0,0.00036438,7]
[310303762,1704468640986,-500.0,0.00036438,7]
[310303763,1704468640996,-500.0,0.00036438,7]
[310303764,1704468641005,-500.0,0.00036438,7]
[310303765,1704468641015,-500.0,0.00036438,7]
[310303766,1704468641026,-500.0,0.00036438,7]
[310303767,1704468641036,-500.0,0.00036438,7]
[310303768,1704468641046,-500.0,0.00036438,7]
[310303769,1704468641055,-500.0,0.00036438,7]
[310303770,1704468641065,-500.0,0.00036438,7]
[310303771,1704468641074,-1224.74,0.00036438,7]
[310303772,1704468641083,-500.0,0.00036438,7]
[310303773,1704468641093,-2052.91,0.00036438,7]
[310303774,1704468641102,-500.0,0.00036438,7]
[310303775,1704468641112,-500.0,0.00036438,7]
[310303776,1704468641123,-674.23,0.00036438,7]
[310303777,1704468641132,-853.72,0.00036438,7]
[310303778,1704468641142,-500.0,0.00036438,7]
[310303779,1704468641151,-500.0,0.00036438,7]
[310303780,1704468641160,-2205.94,0.00036438,7]
[310303781,1704468641170,-500.0,0.00036438,7]
[310303782,1704468641179,-500.0,0.00036438,7]
[310303783,1704468641189,-28300.74,0.00036438,3]
[310303784,1704468641198,-5704.49,0.00036438,7]
[310303785,1704468641208,-1041.92,0.00036438,7]
[310303786,1704468641218,-500.0,0.00036438,7]
[310303787,1704468641228,-500.0,0.00036438,7]
[310303788,1704468641237,-500.0,0.00036438,7]
[310303789,1704468641247,-500.0,0.00036438,7]
[310303790,1704468641257,-853.97,0.00036438,7]
[310303791,1704468641266,-866.43,0.00036438,7]
[310303792,1704468641276,-3712.17,0.00036438,7]
[310303793,1704468641285,-500.0,0.00036438,7]
[310303794,1704468641295,-500.0,0.00036438,7]
[310303795,1704468641304,-500.0,0.00036438,7]
[310303796,1704468641314,-500.0,0.00036544,7]
[310303797,1704468641323,-500.0,0.00036544,7]
[310303798,1704468641336,-500.0,0.00036544,7]
[310303799,1704468641369,-500.0,0.00036544,7]
[310303800,1704468641379,-500.0,0.00036544,7]
[310303801,1704468641387,-500.0,0.00036544,7]
[310303802,1704468641397,-331.64614035,0.00036545,7]
[310303803,1704468641407,-500.0,0.00036545,7]
[310303804,1704468641416,-500.0,0.00036545,7]
[310303805,1704468641426,-500.0,0.00036545,7]
[310303806,1704468641435,-500.0,0.00036545,7]
[310303807,1704468641445,-500.0,0.00036545,7]
[310303808,1704468641455,-500.0,0.00036545,7]
[310303809,1704468641464,-500.0,0.00036545,7]
[310303810,1704468641474,-500.0,0.00036545,7]
[310303811,1704468641485,-500.0,0.00036545,7]
[310303812,1704468641496,-500.0,0.00036545,7]
[310303813,1704468641506,-167.91,0.000366,2]
[310303814,1704468641516,-167.91,0.000366,2]
[310303815,1704468641525,-167.91,0.000366,2]
[310303816,1704468641535,-167.91,0.000366,2]
[310303817,1704468641544,-167.91,0.000366,2]
[310303818,1704468641554,-167.91,0.000366,2]
[310303819,1704468641564,-167.91,0.000366,2]
[310303820,1704468641573,-167.91,0.000366,2]
[310303821,1704468641584,-167.91,0.000366,2]
[310303822,1704468641593,-167.91,0.000366,2]
[310303823,1704468641604,-167.91,0.000366,2]
[310303824,1704468641614,-167.91,0.000366,2]
[310303825,1704468641623,-264.76548722,0.000366,2]
[310303826,1704468641634,-500.0,0.00036712,7]
[310303827,1704468641646,-500.0,0.00036712,7]
[310303828,1704468641658,-500.0,0.00036712,7]
[310303829,1704468641669,-500.0,0.00036712,7]
[310303830,1704468641681,-500.0,0.00036712,7]
[310303831,1704468641690,-500.0,0.00036712,7]
[310303832,1704468641700,-500.0,0.00036712,7]
[310303833,1704468641710,-500.0,0.00036712,7]
[310303834,1704468641724,-500.0,0.00036712,7]
[310303835,1704468641734,-206.3840092,0.00036712,7]
[310303836,1704468641747,-500.0,0.00036712,7]
[310303837,1704468641758,-500.0,0.00036712,7]
[310303838,1704468641768,-1224.74,0.00036712,7]
[310303839,1704468641778,-500.0,0.00036712,7]
[310303840,1704468641789,-2052.91,0.00036712,7]
[310303841,1704468641798,-500.0,0.00036712,7]
[310303842,1704468641807,-500.0,0.00036712,7]
[310303843,1704468641817,-674.23,0.00036712,7]
[310303844,1704468641828,-853.72,0.00036712,7]
[310303845,1704468641838,-500.0,0.00036712,7]
[310303846,1704468641848,-500.0,0.00036712,7]
[310303847,1704468641858,-2205.94,0.00036712,7]
[310303848,1704468641868,-500.0,0.00036712,7]
[310303849,1704468641878,-500.0,0.00036712,7]
[310303850,1704468641888,-28300.74,0.00036712,3]
[310303851,1704468641899,-5704.49,0.00036712,7]
[310303852,1704468641909,-1041.92,0.00036712,7]
[310303853,1704468641920,-500.0,0.00036712,7]
[310303854,1704468641931,-500.0,0.00036712,7]
[310303855,1704468641941,-500.0,0.00036712,7]
[310303856,1704468641951,-853.97,0.00036712,7]
[310303857,1704468641962,-866.43,0.00036712,7]
[310303858,1704468641972,-3712.17,0.00036712,7]
[310303859,1704468641982,-500.0,0.00036712,7]
[310303860,1704468641993,-500.0,0.00036712,7]
[310303861,1704468642003,-500.0,0.00036712,7]